[Event "Croatian junior league 2021"]
[Site "Rabac"]
[Date "2021.04.07"]
[Round "3.9"]
[White "Bunic, Emanuel"]
[Black "Colev, Ivor"]
[Result "0-1"]
[ECO "A85"]
[WhiteElo "1839"]
[BlackElo "1847"]
[Annotator "NA RC"]
[PlyCount "78"]
[EventDate "2021.04.06"]
[EventType "swiss"]
[EventCountry "CRO"]
[SourceTitle "playchess.com"]
[Source "ChessBase"]
[SourceQuality "1"]
[TimeControl "5400+30"]

1. d4 {[%emt 0:00:00]} f5 {[%emt 0:00:00]} 2. c4 {[%emt 0:00:00]} e6 {[%emt 0:00:00]} 3. Nc3 {[%emt 0:00:11]} Nf6 {[%emt 0:00:00]} 4. Bg5 {[%emt 0:01:36]} Bb4 {[%emt 0:00:00]} 5. Nf3 {[%emt 0:00:57]} O-O {[%emt 0:00:22]} 6. Qb3 {[%emt 0:01:10]} a5 {[%emt 0:07:47]} 7. e3 {[%emt 0:02:20]} b6 {[%emt 0:00:22]} 8. Be2 {[%emt 0:01:52]} Bb7 {[%emt 0:01:17]} 9. O-O {[%emt 0:03:17]} Bxc3 {[%emt 0:01:24]} 10. bxc3 {[%emt 0:02:00]} h6 {[%emt 0:12:24]} 11. Bxf6 {[%emt 0:05:37]} Qxf6 {[%emt 0:00:09]} 12. c5 {[%emt 0:01:35]} a4 {[%emt 0:01:00]} 13. Qb2 {[%emt 0:00:43]} a3 $16 {[%emt 0:04:53] [#]} 14. Qb3 $1 {[%emt 0:00:23]} b5 {[%emt 0:08:37]} 15. Ne5 d6 {[%emt 0:00:00]} 16. cxd6 {[%emt 0:11:10]} cxd6 {[%emt 0:00:00]} 17. Bf3 {[%emt 0:00:30]} Bxf3 {[%emt 0:00:04]} 18. Nxf3 {[%emt 0:00:15]} Ra5 {[%emt 0:03:04]} 19. Qb4 {[%emt 0:05:35]} Qd8 {[%emt 0:00:17]} 20. Rad1 {[%emt 0:00:38]} Nc6 {[%emt 0:00:58]} 21. Qb3 {[%emt 0:00:25]} d5 {[%emt 0:00:16]} 22. Rb1 {[%emt 0:03:52]} Qc7 {[%emt 0:00:58]} 23. Qc2 {[%emt 0:01:24]} Rb8 {[%emt 0:03:03]} 24. Nd2 {[%emt 0:01:21]} Raa8 {[%emt 0:04:32]} 25. Nb3 {[%emt 0:02:13]} Nb4 {[%emt 0:01:57]} 26. Qd2 {[%emt 0:00:36]} Na6 {[%emt 0:00:14]} 27. Nc1 {[%emt 0:02:07]} Qa5 {[%emt 0:02:37]} 28. f4 {[%emt 0:03:11]} Rc8 {[%emt 0:02:56]} 29. Rb3 {[%emt 0:01:21]} Rc4 {[%emt 0:03:20]} 30. Ne2 {[%emt 0:01:41]} Rac8 {[%emt 0:01:27]} 31. Rfb1 {[%emt 0:03:53]} Rb8 {[%emt 0:04:22]} 32. Nc1 {[%emt 0:10:39]} Rbc8 {[%emt 0:06:03]} 33. Nd3 {[%emt 0:04:27]} Rxc3 {[%emt 0:24:33]} 34. Rxc3 {[%emt 0:19:16]} Qxc3 {[%emt 0:00:36]} 35. Qxc3 {[%emt 0:00:34]} Rxc3 {[%emt 0:00:02]} 36. Nb4 {[%emt 0:02:29]} Nxb4 {[%emt 0:00:05]} 37. Rxb4 {[%emt 0:00:08]} Rc1+ {[%emt 0:00:01]} 38. Kf2 {[%emt 0:00:15]} Rc2+ {[%emt 0:00:02]} 39. Kf3 {[%emt 0:00:55]} Rb2 {[%emt 0:00:03]} 0-1

[Event "Croatian junior league 2021"]
[Site "Rabac"]
[Date "2021.04.07"]
[Round "3.10"]
[White "Perko, Bartol"]
[Black "Zadro, Matej"]
[Result "1-0"]
[ECO "A36"]
[WhiteElo "1766"]
[BlackElo "1742"]
[Annotator "NA RC"]
[PlyCount "55"]
[EventDate "2021.04.06"]
[EventType "swiss"]
[EventCountry "CRO"]
[SourceTitle "playchess.com"]
[Source "ChessBase"]
[SourceQuality "1"]
[TimeControl "5400+30"]

1. c4 {[%emt 0:00:00]} Nf6 {[%emt 0:00:00]} 2. Nc3 {[%emt 0:00:00]} g6 {[%emt 0:00:00]} 3. g3 {[%emt 0:00:00]} Bg7 {[%emt 0:00:00]} 4. Bg2 {[%emt 0:00:00]} O-O {[%emt 0:00:00]} 5. d3 {[%emt 0:00:02]} d6 {[%emt 0:03:33]} 6. e4 {[%emt 0:00:08]} c5 {[%emt 0:05:14]} 7. Nge2 {[%emt 0:00:05]} Nc6 {[%emt 0:01:18]} 8. O-O {[%emt 0:00:06]} Nd4 {[%emt 0:10:12]} 9. h3 {[%emt 0:03:17]} Nd7 {[%emt 0:05:19]} 10. f4 {[%emt 0:02:55]} Nb8 {[%emt 0:01:38]} 11. Rb1 {[%emt 0:06:23]} Nbc6 {[%emt 0:09:00]} 12. Be3 {[%emt 0:10:43]} a6 {[%emt 0:15:56]} 13. g4 {[%emt 0:00:00]} b5 {[%emt 0:06:28]} 14. f5 {[%emt 0:00:00]} Bd7 {[%emt 0:10:42]} 15. Qd2 {[%emt 0:05:51]} bxc4 {[%emt 0:07:19]} 16. dxc4 {[%emt 0:01:35]} Ne5 {[%emt 0:00:15]} 17. b3 {[%emt 0:00:16]} Nxe2+ {[%emt 0:04:34]} 18. Nxe2 {[%emt 0:01:16]} a5 {[%emt 0:02:34]} 19. Bh6 {[%emt 0:01:48]} a4 {[%emt 0:00:44]} 20. Bxg7 {[%emt 0:00:07]} Kxg7 {[%emt 0:00:04]} 21. g5 {[%emt 0:01:47]} axb3 {[%emt 0:01:28]} 22. axb3 {[%emt 0:00:53]} Ra6 {[%emt 0:02:38]} 23. Qf4 {[%emt 0:04:22]} e6 {[%emt 0:02:17]} 24. f6+ {[%emt 0:01:06]} Kh8 {[%emt 0:00:16]} 25. Qh4 {[%emt 0:00:04]} Ra2 {[%emt 0:01:10]} 26. Qh6 {[%emt 0:00:20]} Rg8 {[%emt 0:00:08]} 27. Rf4 {[%emt 0:00:04]} Qf8 {[%emt 0:00:28]} 28. Qxh7+ {[%emt 0:00:20]} 1-0

[Event "Croatian junior league 2021"]
[Site "Rabac"]
[Date "2021.04.07"]
[Round "3.11"]
[White "Horcicka, Jan"]
[Black "Poljan, Max"]
[Result "1-0"]
[ECO "B45"]
[WhiteElo "1698"]
[BlackElo "1573"]
[Annotator "NA RC"]
[PlyCount "113"]
[EventDate "2021.04.06"]
[EventType "swiss"]
[EventCountry "CRO"]
[SourceTitle "playchess.com"]
[Source "ChessBase"]
[SourceQuality "1"]
[TimeControl "5400+30"]

1. e4 {[%emt 0:00:00]} c5 {[%emt 0:00:00]} 2. Nf3 {[%emt 0:00:00]} e6 {[%emt 0:00:00]} 3. d4 {[%emt 0:00:00]} cxd4 {[%emt 0:00:00]} 4. Nxd4 {[%emt 0:00:00]} Nf6 {[%emt 0:00:28]} 5. Nc3 {[%emt 0:00:10]} Nc6 {[%emt 0:00:06]} 6. Ndb5 {[%emt 0:01:10]} Bb4 {[%emt 0:00:05]} 7. a3 {[%emt 0:01:24]} Bxc3+ {[%emt 0:00:06]} 8. Nxc3 {[%emt 0:00:01]} O-O {[%emt 0:01:49]} 9. Bf4 {[%emt 0:02:12]} e5 {[%emt 0:01:33]} 10. Bg5 {[%emt 0:00:36]} h6 {[%emt 0:02:18]} 11. Bh4 {[%emt 0:00:09]} d6 {[%emt 0:04:04]} 12. Bc4 {[%emt 0:13:21]} a6 {[%emt 0:08:48]} 13. Nd5 {[%emt 0:14:08]} g5 {[%emt 0:02:06]} 14. Bg3 {[%emt 0:07:30]} Nxd5 {[%emt 0:11:39]} 15. Bxd5 {[%emt 0:02:31]} Ne7 {[%emt 0:06:31]} 16. Ba2 {[%emt 0:03:07]} Qb6 {[%emt 0:06:16]} 17. h4 {[%emt 0:13:16]} g4 {[%emt 0:03:12]} 18. Qd2 {[%emt 0:00:40]} Kg7 {[%emt 0:02:10]} 19. O-O-O {[%emt 0:00:48]} f5 {[%emt 0:17:43]} 20. Qxd6 {[%emt 0:04:07]} Qxd6 {[%emt 0:01:55]} 21. Rxd6 {[%emt 0:00:01]} f4 {[%emt 0:00:10]} 22. Bh2 {[%emt 0:00:06]} Rf6 {[%emt 0:01:49]} 23. Rhd1 {[%emt 0:02:25]} Rxd6 {[%emt 0:01:13]} 24. Rxd6 {[%emt 0:00:02]} h5 {[%emt 0:04:19]} 25. f3 {[%emt 0:05:28]} Ng6 {[%emt 0:03:27]} 26. fxg4 {[%emt 0:14:00]} Bxg4 {[%emt 0:03:09]} 27. Rb6 {[%emt 0:04:43]} Rb8 {[%emt 0:02:35]} 28. g3 {[%emt 0:00:42]} f3 {[%emt 0:02:23]} 29. Bg1 {[%emt 0:00:01]} Nf8 {[%emt 0:01:45]} 30. Bd5 {[%emt 0:01:08]} Nd7 {[%emt 0:04:20]} 31. Rxb7 {[%emt 0:00:48]} Rxb7 {[%emt 0:00:05]} 32. Bxb7 {[%emt 0:00:03]} Nf6 {[%emt 0:00:21]} 33. Kd2 {[%emt 0:00:44]} Kf7 {[%emt 0:01:07]} 34. Ke3 {[%emt 0:01:23]} a5 {[%emt 0:00:32]} 35. Bf2 {[%emt 0:00:53]} Nd7 {[%emt 0:03:27]} 36. Be1 {[%emt 0:08:03]} a4 {[%emt 0:00:29]} 37. Bc6 {[%emt 0:01:49]} Nb6 {[%emt 0:00:09]} 38. Bb5 {[%emt 0:00:30]} Ke7 {[%emt 0:01:53]} 39. Bb4+ {[%emt 0:00:44]} Ke6 {[%emt 0:01:05]} 40. Ba5 {[%emt 0:00:13]} Nd7 {[%emt 0:00:29]} 41. Bxa4 {[%emt 0:01:18]} Nc5 {[%emt 0:00:29]} 42. Bc6 {[%emt 0:00:00]} Kd6 {[%emt 0:00:53]} 43. Bd5 {[%emt 0:00:00]} Na4 {[%emt 0:00:29]} 44. Bb4+ {[%emt 0:00:29]} Kc7 {[%emt 0:00:32]} 45. Bc3 {[%emt 0:01:13]} Nxc3 {[%emt 0:01:01]} 46. bxc3 {[%emt 0:00:01]} Kb6 {[%emt 0:00:06]} 47. Bf7 {[%emt 0:00:54]} Ka5 {[%emt 0:00:25]} 48. Be8 {[%emt 0:00:03]} Ka6 {[%emt 0:00:16]} 49. c4 {[%emt 0:00:53]} Kb6 {[%emt 0:00:07]} 50. c3 {[%emt 0:00:30]} Kc5 {[%emt 0:00:35]} 51. Bb5 {[%emt 0:00:07]} Kb6 {[%emt 0:00:00]} 52. Ba4 {[%emt 0:00:12]} Kc5 {[%emt 0:00:10]} 53. Bb3 {[%emt 0:00:08]} Kb6 {[%emt 0:00:09]} 54. Kf2 {[%emt 0:00:42]} Kc5 {[%emt 0:00:21]} 55. a4 {[%emt 0:00:26]} Kb6 {[%emt 0:00:29]} 56. Bd1 {[%emt 0:00:06]} Be6 {[%emt 0:00:03]} 57. Bxf3 {[%emt 0:00:08]} 1-0

[Event "Croatian junior league 2021"]
[Site "Rabac"]
[Date "2021.04.07"]
[Round "3.12"]
[White "Hergotic, Mihael"]
[Black "Kostic, Lovro"]
[Result "1-0"]
[ECO "B06"]
[WhiteElo "1476"]
[BlackElo "1367"]
[Annotator "NA RC"]
[PlyCount "101"]
[EventDate "2021.04.06"]
[EventType "swiss"]
[EventCountry "CRO"]
[SourceTitle "playchess.com"]
[Source "ChessBase"]
[SourceQuality "1"]
[TimeControl "5400+30"]

1. e4 g6 2. d4 Bg7 3. Nc3 d6 4. g3 a6 5. a4 b6 6. Bg2 Bb7 7. Nge2 Nd7 8. O-O c5 9. f4 e6 10. f5 exf5 11. exf5 Bxg2 12. Kxg2 Ngf6 13. Bg5 Qc7 14. fxg6 {[%emt 0:06:30]} fxg6 {[%emt 0:06:30]} 15. Nf4 {[%emt 0:00:30]} O-O {[%emt 0:00:30]} 16. Ne6 {[%emt 0:00:30]} Qb7+ {[%emt 0:00:30]} 17. d5 {[%emt 0:00:30]} Rfe8 {[%emt 0:00:30]} 18. Kg1 {[%emt 0:00:30]} Nxd5 {[%emt 0:00:30]} 19. Qxd5 {[%emt 0:00:30]} Qxd5 {[%emt 0:00:30]} 20. Nxd5 {[%emt 0:00:30]} Rxe6 {[%emt 0:00:30]} 21. Nc7 {[%emt 0:00:30]} Bd4+ {[%emt 0:00:30]} 22. Kh1 {[%emt 0:00:30]} Rae8 {[%emt 0:00:30]} 23. Nxe8 {[%emt 0:00:30]} Rxe8 {[%emt 0:00:30]} 24. c3 {[%emt 0:00:30]} Bg7 {[%emt 0:00:30]} 25. Rae1 {[%emt 0:00:30]} Rxe1 {[%emt 0:00:30]} 26. Rxe1 {[%emt 0:00:30]} Ne5 {[%emt 0:00:30]} 27. Rd1 {[%emt 0:00:30]} Bf8 {[%emt 0:00:30]} 28. Bd8 {[%emt 0:00:30]} Ng4 {[%emt 0:00:30]} 29. Rd2 {[%emt 0:00:30]} Ne3 {[%emt 0:00:30]} 30. Rd3 {[%emt 0:00:30]} Ng4 {[%emt 0:00:30]} 31. Kg2 {[%emt 0:00:30]} Ne5 {[%emt 0:00:30]} 32. Rd1 {[%emt 0:00:30]} Nc4 {[%emt 0:00:30]} 33. Rb1 {[%emt 0:00:30]} b5 {[%emt 0:00:30]} 34. axb5 {[%emt 0:00:30]} axb5 {[%emt 0:00:30]} 35. b4 {[%emt 0:00:30]} Na3 {[%emt 0:00:30]} 36. Rb3 {[%emt 0:00:30]} cxb4 {[%emt 0:00:30]} 37. Rxb4 {[%emt 0:00:30]} d5 {[%emt 0:00:30]} 38. Rb3 {[%emt 0:00:30]} Kf7 {[%emt 0:00:30]} 39. Ba5 {[%emt 0:00:30]} Nc2 {[%emt 0:00:30]} 40. Rxb5 {[%emt 0:00:30]} d4 {[%emt 0:00:30]} 41. cxd4 {[%emt 0:00:30]} Nxd4 {[%emt 0:00:30]} 42. Rb7+ {[%emt 0:00:30]} Kg8 {[%emt 0:00:30]} 43. Bc3 {[%emt 0:00:30]} Ne6 {[%emt 0:00:30]} 44. Kf3 {[%emt 0:00:30]} Nc5 {[%emt 0:00:30]} 45. Ra7 {[%emt 0:00:30]} Ne6 {[%emt 0:00:30]} 46. Ke4 {[%emt 0:00:30]} Ng7 {[%emt 0:00:30]} 47. Kd5 {[%emt 0:00:30]} Nf5 {[%emt 0:00:30]} 48. Ke6 {[%emt 0:00:30]} Ng7+ {[%emt 0:00:30]} 49. Bxg7 {[%emt 0:00:30]} Bxg7 {[%emt 0:00:30]} 50. Ra8+ {[%emt 0:00:30]} Bf8 {[%emt 0:00:30]} 51. Kf6 {[%emt 0:00:30]} 1-0

[Event "Croatian junior league 2021"]
[Site "Rabac"]
[Date "2021.04.07"]
[Round "3.15"]
[White "Birkic, Josip"]
[Black "Mijic, Karlo"]
[Result "1/2-1/2"]
[ECO "E06"]
[WhiteElo "1972"]
[BlackElo "1599"]
[Annotator "NA RC"]
[PlyCount "101"]
[EventDate "2021.04.06"]
[EventType "swiss"]
[EventCountry "CRO"]
[SourceTitle "playchess.com"]
[Source "ChessBase"]
[SourceQuality "1"]
[TimeControl "5400+30"]

1. Nf3 {[%emt 0:00:00]} Nf6 {[%emt 0:00:00]} 2. c4 {[%emt 0:00:30]} e6 {[%emt 0:00:30]} 3. g3 {[%emt 0:00:30]} d5 {[%emt 0:00:30]} 4. Bg2 {[%emt 0:00:30]} Be7 {[%emt 0:00:30]} 5. O-O {[%emt 0:00:30]} O-O {[%emt 0:00:30]} 6. d4 {[%emt 0:00:30]} c6 {[%emt 0:00:30]} 7. b3 {[%emt 0:00:30]} Na6 {[%emt 0:00:30]} 8. Nbd2 {[%emt 0:00:30]} Nc7 $14 {[%emt 0:00:30]} 9. Qc2 b6 10. Ne5 Bb7 11. Bb2 Rc8 12. Rad1 Nfe8 13. f3 c5 14. e3 Nd6 15. Qb1 Nf5 16. Rfe1 cxd4 17. exd4 dxc4 18. Ndxc4 Bb4 19. Re2 Nd5 20. Rd3 b5 21. Nd2 Nc3 22. Bxc3 Bxc3 23. d5 Bxd5 24. Ng4 Qb6+ 25. Nf2 {[%emt 0:12:00]} Rc7 {[%emt 0:12:00]} 26. Rxd5 {[%emt 0:00:30]} Nxg3 {[%emt 0:00:30]} 27. hxg3 {[%emt 0:00:30]} exd5 {[%emt 0:00:30]} 28. Qd3 {[%emt 0:00:30]} Qd4 {[%emt 0:00:30]} 29. Qxd4 {[%emt 0:00:30]} Bxd4 {[%emt 0:00:30]} 30. f4 {[%emt 0:00:30]} Rc2 {[%emt 0:00:30]} 31. Kf1 {[%emt 0:00:30]} Bc3 {[%emt 0:00:30]} 32. Nf3 {[%emt 0:00:30]} Rxe2 {[%emt 0:00:30]} 33. Kxe2 {[%emt 0:00:30]} d4 {[%emt 0:00:30]} 34. Kd3 {[%emt 0:00:30]} b4 {[%emt 0:00:30]} 35. Ne5 {[%emt 0:00:30]} Rd8 {[%emt 0:00:30]} 36. g4 {[%emt 0:00:30]} f6 {[%emt 0:00:30]} 37. Nc6 {[%emt 0:00:30]} Re8 {[%emt 0:00:30]} 38. Bd5+ {[%emt 0:00:30]} Kf8 {[%emt 0:00:30]} 39. Ne4 {[%emt 0:00:30]} Ba1 {[%emt 0:00:30]} 40. Nxb4 {[%emt 0:00:30]} f5 {[%emt 0:00:30]} 41. gxf5 {[%emt 0:00:30]} h5 {[%emt 0:00:30]} 42. Nc2 {[%emt 0:00:30]} Rd8 {[%emt 0:00:30]} 43. Be6 {[%emt 0:00:30]} Bb2 {[%emt 0:00:30]} 44. f6 {[%emt 0:00:30]} gxf6 {[%emt 0:00:30]} 45. Nb4 {[%emt 0:00:30]} Re8 {[%emt 0:00:30]} 46. Bf5 {[%emt 0:00:30]} Kg7 {[%emt 0:00:30]} 47. Nd5 {[%emt 0:00:30]} Rf8 {[%emt 0:00:30]} 48. Ndxf6 {[%emt 0:00:30]} Rxf6 {[%emt 0:00:30]} 49. Nxf6 {[%emt 0:00:30]} Kxf6 {[%emt 0:00:30]} 50. Bh3 {[%emt 0:00:30]} h4 {[%emt 0:00:30]} 51. Ke4 {[%emt 0:00:30]} 1/2-1/2

[Event "Croatian junior league 2021"]
[Site "Rabac"]
[Date "2021.04.07"]
[Round "3.16"]
[White "Bedic, Noemi"]
[Black "Zekic, Patrik"]
[Result "0-1"]
[ECO "C06"]
[WhiteElo "1587"]
[BlackElo "1731"]
[Annotator "NA RC"]
[PlyCount "110"]
[EventDate "2021.04.06"]
[EventType "swiss"]
[EventCountry "CRO"]
[SourceTitle "playchess.com"]
[Source "ChessBase"]
[SourceQuality "1"]
[TimeControl "5400+30"]

1. e4 e6 2. d4 d5 3. Nd2 Be7 4. Ngf3 Nf6 5. e5 Nfd7 6. Bd3 c5 7. c3 Nc6 8. O-O g5 9. Nb1 h5 10. Be3 g4 11. Ne1 Qb6 12. b3 a5 13. Nc2 cxd4 14. cxd4 Rg8 15. Be2 f5 16. exf6 Nxf6 17. f3 Bd7 18. Nc3 O-O-O 19. Na4 Qc7 20. Rc1 gxf3 21. Rxf3 Ng4 22. Bf4 Bd6 23. Bxd6 {[%emt 0:11:00]} Qxd6 {[%emt 0:11:00]} 24. Rh3 {[%emt 0:00:30]} Qf4 {[%emt 0:00:30]} 25. Bxg4 {[%emt 0:00:30]} hxg4 {[%emt 0:00:30]} 26. Rc3 {[%emt 0:00:30]} g3 {[%emt 0:00:30]} 27. Rxg3 {[%emt 0:00:30]} Rxg3 {[%emt 0:00:30]} 28. hxg3 {[%emt 0:00:30]} Qxg3 {[%emt 0:00:30]} 29. Qe1 {[%emt 0:00:30]} Qf4 {[%emt 0:00:30]} 30. Qe3 {[%emt 0:00:30]} Rf8 {[%emt 0:00:30]} 31. Qxf4 {[%emt 0:00:30]} Rxf4 {[%emt 0:00:30]} 32. g3 {[%emt 0:00:30]} Rg4 {[%emt 0:00:30]} 33. Kf2 {[%emt 0:00:30]} Kd8 {[%emt 0:00:30]} 34. Rd1 {[%emt 0:00:30]} Ne7 {[%emt 0:00:30]} 35. Ne3 {[%emt 0:00:30]} Rg6 {[%emt 0:00:30]} 36. Nc5 {[%emt 0:00:30]} b6 {[%emt 0:00:30]} 37. Nd3 {[%emt 0:00:30]} Nc6 {[%emt 0:00:30]} 38. Nf4 {[%emt 0:00:30]} Rg8 {[%emt 0:00:30]} 39. Ne2 {[%emt 0:00:30]} Ke7 {[%emt 0:00:30]} 40. Rg1 {[%emt 0:00:30]} Kf6 {[%emt 0:00:30]} 41. g4 {[%emt 0:00:30]} e5 {[%emt 0:00:30]} 42. dxe5+ {[%emt 0:00:30]} Kxe5 {[%emt 0:00:30]} 43. Kf3 {[%emt 0:00:30]} Nb4 {[%emt 0:00:30]} 44. a3 {[%emt 0:00:30]} Nc6 {[%emt 0:00:30]} 45. g5 {[%emt 0:00:30]} Ne7 {[%emt 0:00:30]} 46. Nc1 {[%emt 0:00:30]} Be6 {[%emt 0:00:30]} 47. Nd3+ {[%emt 0:00:30]} Kd4 {[%emt 0:00:30]} 48. Nc1 {[%emt 0:00:30]} Kc3 {[%emt 0:00:30]} 49. Kf4 {[%emt 0:00:30]} d4 {[%emt 0:00:30]} 50. Nd1+ {[%emt 0:00:30]} Kd2 {[%emt 0:00:30]} 51. Ke5 {[%emt 0:00:30]} Bc8 {[%emt 0:00:30]} 52. Nf2 {[%emt 0:00:30]} Nf5 {[%emt 0:00:30]} 53. Ne4+ {[%emt 0:00:30]} Kc2 {[%emt 0:00:30]} 54. g6 {[%emt 0:00:30]} Nh4 {[%emt 0:00:30]} 55. Kf6 {[%emt 0:00:30]} Bf5 {[%emt 0:00:30]} 0-1

[Event "Croatian junior league 2021"]
[Site "Rabac"]
[Date "2021.04.07"]
[Round "3.23"]
[White "Martic, Filip"]
[Black "Veverec, Ivo"]
[Result "1/2-1/2"]
[ECO "D35"]
[WhiteElo "1756"]
[BlackElo "1786"]
[Annotator "NA RC"]
[PlyCount "83"]
[EventDate "2021.04.06"]
[EventType "swiss"]
[EventCountry "CRO"]
[SourceTitle "playchess.com"]
[Source "ChessBase"]
[SourceQuality "1"]
[TimeControl "5400+30"]

1. d4 {[%emt 0:00:00]} d5 {[%emt 0:00:00]} 2. Nf3 {[%emt 0:00:00]} Nf6 {[%emt 0:00:09]} 3. c4 {[%emt 0:00:31]} e6 {[%emt 0:00:07]} 4. Nc3 {[%emt 0:01:14]} c6 {[%emt 0:01:10]} 5. Qc2 {[%emt 0:02:21]} h6 {[%emt 0:11:56]} 6. cxd5 {[%emt 0:02:43]} exd5 {[%emt 0:00:43]} 7. Bf4 {[%emt 0:01:13]} Bd6 {[%emt 0:01:49]} 8. Bg3 {[%emt 0:03:04]} O-O {[%emt 0:06:18]} 9. e3 {[%emt 0:03:03]} Re8 {[%emt 0:04:25]} 10. Bd3 {[%emt 0:03:59]} a5 {[%emt 0:06:33]} 11. O-O {[%emt 0:08:28]} Na6 {[%emt 0:01:22]} 12. a3 {[%emt 0:02:32]} Nc7 {[%emt 0:05:31]} 13. Rab1 {[%emt 0:05:21]} Bxg3 {[%emt 0:02:50]} 14. hxg3 {[%emt 0:00:25]} Qe7 {[%emt 0:03:57]} 15. Rfc1 {[%emt 0:09:49]} Ne4 {[%emt 0:10:15]} 16. Na4 {[%emt 0:08:56]} Nd6 {[%emt 0:18:09]} 17. Nb6 {[%emt 0:03:23]} Ra7 {[%emt 0:10:41]} 18. b4 {[%emt 0:06:38]} axb4 {[%emt 0:03:09]} 19. axb4 {[%emt 0:00:15]} Ndb5 {[%emt 0:07:12]} 20. Nxc8 {[%emt 0:06:38]} Rxc8 {[%emt 0:00:00]} 21. Qc5 {[%emt 0:00:52]} Qxc5 {[%emt 0:00:00]} 22. bxc5 {[%emt 0:00:28]} f6 {[%emt 0:00:00]} 23. Nh4 {[%emt 0:03:03]} Ra3 {[%emt 0:00:00]} 24. Bxb5 {[%emt 0:02:08]} Nxb5 {[%emt 0:00:00]} 25. Nf5 {[%emt 0:00:08]} Rb8 {[%emt 0:00:00]} 26. Ra1 {[%emt 0:04:56]} Rba8 {[%emt 0:01:29]} 27. Rxa3 {[%emt 0:02:46]} Rxa3 {[%emt 0:00:07]} 28. Rb1 {[%emt 0:00:28]} Ra7 {[%emt 0:02:12]} 29. g4 {[%emt 0:03:33]} Kf7 {[%emt 0:00:26]} 30. Kh2 {[%emt 0:00:36]} Ra2 {[%emt 0:02:05]} 31. Kg3 {[%emt 0:00:29]} Ra7 {[%emt 0:00:36]} 32. Rb2 {[%emt 0:00:42]} Ra8 {[%emt 0:01:36]} 33. Rb3 {[%emt 0:02:17]} Ra7 {[%emt 0:00:07]} 34. f3 {[%emt 0:00:15]} Ra4 {[%emt 0:01:06]} 35. Kf4 {[%emt 0:04:47]} Ra7 {[%emt 0:00:46]} 36. Rb4 {[%emt 0:00:09]} Ra2 {[%emt 0:00:12]} 37. Kg3 {[%emt 0:00:23]} Ra3 {[%emt 0:00:20]} 38. Kf4 {[%emt 0:04:24]} Ra2 {[%emt 0:00:17]} 39. Kg3 {[%emt 0:02:32]} Ra3 {[%emt 0:00:02]} 40. Kf4 {[%emt 0:00:05]} Ra2 {[%emt 0:00:29]} 41. Kg3 Ra3 42. Kf4 {[%emt 0:00:48]} 1/2-1/2